fUST/lending_fUST_20250612
["ID","MTS","AMOUNT","RATE_DAILY","PERIOD"]
[365429778,1749666638268,-151.0,0.00022488,7]
[365429779,1749666638278,-153.536195,0.00022488,7]
[365429780,1749666638287,-159.232136,0.00022488,7]
[365429781,1749666638297,-159.232136,0.00022488,7]
[365429783,1749666638306,-528.930879,0.00022488,7]
[365429785,1749666638315,-528.930879,0.00022488,7]
[365429787,1749666638324,-151.0,0.00022488,7]
[365429789,1749666638336,-527.380506,0.00022488,7]
[365429791,1749666638346,-527.380506,0.00022488,7]
[365429793,1749666638355,-208.943659,0.00022488,7]
[365429795,1749666638363,-208.943659,0.00022488,7]
[365429797,1749666638373,-151.0,0.00022488,7]
[365429799,1749666638383,-151.0,0.000225,7]
[365429801,1749666638392,-178.241321,0.000225,7]
[365429803,1749666638401,-178.241321,0.000225,7]
[365429805,1749666638411,-405.79377,0.000225,7]
[365429807,1749666638420,-405.79377,0.000225,7]
[365429809,1749666638430,-151.0,0.000225,7]
[365429811,1749666638441,-151.0,0.000225,7]
[365429813,1749666638450,-153.870603,0.000225,7]
[365429815,1749666638460,-153.870603,0.000225,7]
[365429817,1749666638469,-756.86,0.00022517,3]
[365429819,1749666638478,-512.20677944,0.00022521,2]
[365429821,1749666638491,-501.86867376,0.00022521,2]
[365429824,1749666638505,-1000.0,0.00022521,2]
[365429826,1749666638519,-1000.0,0.00022521,2]
[365429829,1749666638532,-1000.0,0.00022521,2]
[365429831,1749666638543,-1000.0,0.00022521,2]
[365429833,1749666638554,-1000.0,0.00022521,2]
[365429835,1749666638567,-150.125,0.00022526,2]
[365429838,1749666638578,-176.325,0.00022526,2]
[365429840,1749666638591,-1658.29,0.00022537,2]
[365429842,1749666638603,-42418.87881346,0.00022542,2]
[365429845,1749666638616,-151.0,0.00022542,7]
[365429847,1749666638628,-151.0,0.00022542,7]
[365429849,1749666638641,-151.0,0.00022542,7]
[365429852,1749666638655,-173.061753,0.00022542,7]
[365429854,1749666638667,-173.061753,0.00022542,7]
[365429857,1749666638678,-721.202962,0.00022542,7]
[365429858,1749666638691,-721.202962,0.00022542,7]
[365429860,1749666638702,-151.0,0.00022542,7]
[365429861,1749666638714,-151.0,0.00022542,7]
[365429862,1749666638727,-151.0,0.00022542,7]
[365429863,1749666638741,-151.0,0.00022542,7]
[365429864,1749666638752,-167.913368,0.00022542,7]
[365429865,1749666638763,-167.913368,0.00022542,7]
[365429866,1749666638773,-231.951183,0.00022542,7]
[365429867,1749666638785,-231.951183,0.00022542,7]
[365429868,1749666638796,-151.0,0.00022542,7]
[365429869,1749666638807,-160.0,0.00022585,4]
[365429870,1749666638820,-151.0,0.000226,6]
[365429871,1749666638831,-151.0,0.000226,9]
[365429872,1749666638844,-151.0,0.000226,7]
[365429873,1749666638856,-752.40283208,0.000226,2]
[365429874,1749666638869,-166.06456614,0.000226,2]
[365429875,1749666638882,-30000.0,0.000226,5]
[365429876,1749666638894,-756.86,0.00022617,7]
[365429877,1749666638907,-158.77989778,0.00022658,2]
[365429878,1749666638917,-511.72404302,0.00022673,2]
[365429879,1749666638927,-151.0,0.0002269,7]
[365429880,1749666638937,-151.0,0.0002269,7]
[365429881,1749666638949,-151.0,0.0002269,7]
[365429882,1749666638961,-152.255243,0.0002269,7]
[365429883,1749666638975,-152.255243,0.0002269,7]
[365429884,1749666638987,-151.0,0.0002269,7]
[365429885,1749666638997,-151.0,0.0002269,7]
[365429886,1749666639008,-151.0,0.0002269,7]
[365429887,1749666639018,-151.0,0.00022691,7]
[365429888,1749666639030,-151.0,0.00022691,7]
[365429889,1749666639042,-151.0,0.00022691,7]
[365429890,1749666639053,-151.0,0.00022691,7]
[365429891,1749666639063,-151.0,0.00022691,7]
[365429892,1749666639074,-197.998326,0.00022691,7]
[365429893,1749666639084,-152.255243,0.00022691,7]
[365429894,1749666639096,-152.255243,0.00022691,7]
[365429895,1749666639107,-151.0,0.00022691,7]
[365429896,1749666639118,-151.0,0.00022691,7]
[365429897,1749666639129,-151.0,0.00022691,7]
[365429898,1749666639141,-717.879805,0.00022699,2]
[365429899,1749666639151,-151.0,0.00022699,7]
[365429900,1749666639163,-151.0,0.00022699,7]
[365429901,1749666639174,-151.0,0.00022699,7]
[365429902,1749666639185,-151.0,0.00022699,7]
[365429903,1749666639198,-249276.81234775,0.000227,2]
[365429904,1749666639209,-291.087503,0.000227,7]
[365429905,1749666639219,-151.0,0.000227,7]
[365429906,1749666639231,-151.0,0.000227,7]
[365429907,1749666639241,-151.0,0.000227,7]
[365429908,1749666639252,-151.0,0.000227,7]
[365429909,1749666639263,-151.0,0.000227,7]
[365429910,1749666639275,-151.0,0.000227,7]
[365429911,1749666639285,-275.711339,0.000227,7]
[365429912,1749666639296,-151.0,0.000227,7]
[365429913,1749666639307,-151.0,0.000227,7]
[365429914,1749666639319,-152.255243,0.000227,7]
[365429915,1749666639331,-151.0,0.000227,7]
[365429916,1749666639343,-152.255243,0.000227,7]
[365429917,1749666639354,-151.0,0.000227,7]
[365429918,1749666639365,-270.683971,0.000227,7]
[365429919,1749666639376,-270.683971,0.000227,7]
[365429920,1749666639387,-151.0,0.000227,9]
[365429921,1749666639398,-453.575662,0.000227,7]
[365429922,1749666639412,-453.575662,0.000227,7]
[365429923,1749666639424,-151.0,0.000227,7]
[365429924,1749666639435,-151.0,0.000227,7]
[365429925,1749666639450,-247.153633,0.000227,7]
[365429926,1749666639462,-211.343556,0.000227,7]
[365429927,1749666639473,-211.343556,0.000227,7]
[365429928,1749666639484,-151.0,0.000227,7]
[365429929,1749666639496,-151.0,0.000227,7]
[365429930,1749666639507,-153.536195,0.000227,7]
[365429931,1749666639519,-159.232136,0.000227,7]
[365429932,1749666639530,-159.232136,0.000227,7]
[365429933,1749666639542,-528.930879,0.000227,7]
[365429934,1749666639553,-528.930879,0.000227,7]
[365429935,1749666639564,-151.0,0.000227,7]
[365429936,1749666639575,-527.380506,0.000227,7]
[365429937,1749666639587,-527.380506,0.000227,7]
[365429938,1749666639598,-208.943659,0.000227,7]
[365429939,1749666639609,-208.943659,0.000227,7]
[365429940,1749666639620,-151.0,0.000227,7]
[365429941,1749666639631,-151.0,0.000227,7]
[365429942,1749666639642,-178.241321,0.000227,7]
[365429943,1749666639654,-178.241321,0.000227,7]
[365429944,1749666639665,-405.79377,0.000227,7]
[365429945,1749666639676,-405.79377,0.000227,7]
[365429946,1749666639688,-151.0,0.000227,7]
[365429947,1749666639703,-151.0,0.000227,7]
[365429950,1749666639843,-153.870603,0.000227,7]
[365429951,1749666639862,-153.870603,0.000227,7]
[365429952,1749666639872,-717.879805,0.000227,2]
[365429953,1749666639881,-151.0,0.000227,7]
[365429954,1749666639891,-151.0,0.000227,7]
[365429955,1749666639901,-277.254903,0.000227,7]
[365429956,1749666639911,-284.868136,0.000227,7]
[365429957,1749666639921,-284.868136,0.000227,7]
[365429958,1749666639931,-1000.0,0.000227,2]
[365429959,1749666639945,-151.0,0.000227,7]
[365429960,1749666639955,-151.927387,0.000227,7]
[365429961,1749666639964,-151.0,0.000227,7]
[365429962,1749666639977,-151.0,0.000227,7]
[365429963,1749666639986,-173.061753,0.000227,7]
[365429964,1749666639996,-151.0,0.000227,7]
[365429965,1749666640007,-173.061753,0.000227,7]
[365429966,1749666640016,-721.202962,0.000227,7]
[365429968,1749666640026,-721.202962,0.000227,7]
[365429969,1749666640036,-151.0,0.000227,7]
[365429970,1749666640046,-151.0,0.000227,7]
[365429971,1749666640055,-157.470839,0.000227,7]
[365429972,1749666640065,-151.0,0.000227,7]
[365429973,1749666640074,-167.913368,0.000227,7]
[365429974,1749666640083,-167.913368,0.000227,7]
[365429975,1749666640093,-231.951183,0.000227,7]
[365429976,1749666640103,-231.951183,0.000227,7]
[365429977,1749666640113,-66073.12455376,0.000227,2]
[365429978,1749666640122,-151.0,0.000227,7]
[365429979,1749666640132,-756.86,0.00022717,5]
[365429982,1749666640141,-420.0,0.00022736,2]
[365429983,1749666640151,-151.0,0.00022737,7]
[365429984,1749666640161,-187.5233913,0.00022737,7]
[365429985,1749666640170,-151.0,0.00022737,7]
[365429986,1749666640179,-151.0,0.00022737,7]
[365429988,1749666640193,-460.0,0.00022737,4]
[365429990,1749666640204,-491.93,0.00022737,4]
[365429992,1749666640213,-545.34,0.00022737,4]
[365429994,1749666640222,-1507.18,0.00022737,4]
[365429996,1749666640232,-460.0,0.00022737,4]
[365429997,1749666640241,-460.0,0.00022739,4]
[365429999,1749666640251,-1147.24,0.00022739,4]
[365430001,1749666640260,-460.0,0.00022739,4]
[365430003,1749666640270,-938.38,0.00022739,4]
[365430005,1749666640279,-214.36718605,0.00022739,4]
[365430007,1749666640289,-460.0,0.00022739,4]
[365430009,1749666640299,-1361.44,0.00022739,4]
[365430011,1749666640309,-460.0,0.00022739,4]
[365430013,1749666640319,-460.0,0.00022739,4]
[365430015,1749666640328,-460.0,0.00022739,4]
[365430017,1749666640340,-460.0,0.00022739,4]
[365430019,1749666640350,-1251.39,0.00022739,4]
[365430021,1749666640360,-2237.62,0.00022739,4]
[365430023,1749666640372,-1184.58,0.00022739,4]
[365430025,1749666640383,-1168.69,0.00022739,4]
[365430027,1749666640395,-808.9,0.00022739,4]
[365430030,1749666640405,-572.55,0.00022739,2]
[365430031,1749666640416,-305.7,0.00022752,6]
[365430034,1749666640426,-449.9546829,0.00022767,2]
[365430036,1749666640435,-5000.0,0.00022769,2]
[365430038,1749666640448,-153.026314,0.0002277,7]
[365430040,1749666640458,-151.0,0.0002277,7]
[365430042,1749666640467,-152.255243,0.0002277,7]
[365430044,1749666640477,-221.7182,0.0002277,7]
[365430046,1749666640486,-152.255243,0.0002277,7]
[365430048,1749666640496,-151.0,0.0002277,7]
[365430050,1749666640505,-270.683971,0.0002277,7]
[365430052,1749666640515,-270.683971,0.0002277,7]
[365430054,1749666640524,-453.575662,0.0002277,7]
[365430056,1749666640535,-453.575662,0.0002277,7]
[365430058,1749666640544,-151.0,0.0002277,7]
[365430060,1749666640554,-151.0,0.0002277,7]
[365430062,1749666640564,-211.343556,0.0002277,7]
[365430064,1749666640574,-211.343556,0.0002277,7]
[365430066,1749666640584,-151.0,0.0002277,7]
[365430068,1749666640593,-151.0,0.0002277,7]
[365430070,1749666640602,-153.536195,0.0002277,7]
[365430072,1749666640612,-159.232136,0.0002277,7]
[365430074,1749666640621,-159.232136,0.0002277,7]
[365430076,1749666640631,-528.930879,0.0002277,7]
[365430078,1749666640640,-528.930879,0.0002277,7]
[365430080,1749666640649,-151.0,0.0002277,7]
[365430082,1749666640659,-527.380506,0.0002277,7]
[365430084,1749666640668,-527.380506,0.0002277,7]
[365430086,1749666640678,-1283.108096,0.0002277,7]
[365430088,1749666640687,-208.943659,0.0002277,7]
[365430090,1749666640702,-208.943659,0.0002277,7]
[365430092,1749666640712,-151.0,0.0002277,7]
[365430094,1749666640722,-151.0,0.0002277,7]
[365430096,1749666640731,-178.241321,0.0002277,7]
[365430098,1749666640741,-178.241321,0.0002277,7]
[365430100,1749666640750,-405.79377,0.0002277,7]
[365430102,1749666640760,-405.79377,0.0002277,7]
[365430103,1749666640770,-151.0,0.0002277,7]
[365430105,1749666640779,-257.66779,0.0002277,7]
[365430108,1749666640789,-151.0,0.0002277,7]
[365430109,1749666640799,-153.870603,0.0002277,7]
[365430111,1749666640809,-153.870603,0.0002277,7]
[365430113,1749666640818,-717.879805,0.0002277,2]
[365430115,1749666640827,-151.0,0.0002277,7]
[365430117,1749666640837,-284.868136,0.0002277,7]
[365430119,1749666640846,-284.868136,0.0002277,7]
[365430121,1749666640856,-151.0,0.0002277,7]
[365430124,1749666640865,-211.087885,0.0002277,7]
[365430125,1749666640874,-151.0,0.0002277,7]
[365430128,1749666640884,-794.71,0.000228,7]
[365430130,1749666640893,-756.86,0.00022817,7]
[365430131,1749666640903,-420.0,0.00022839,2]
[365430133,1749666640912,-158.77989778,0.00022849,2]
[365430135,1749666640921,-2426.28305713,0.000229,2]
[365430137,1749666640931,-500.0,0.00022903,2]
[365430139,1749666640943,-500.0,0.00022903,2]
[365430142,1749666640954,-500.0,0.00022903,2]
[365430143,1749666640963,-549.0822002,0.00022903,2]
[365430146,1749666640972,-500.0,0.00022903,2]
[365430147,1749666640981,-500.0,0.00022903,2]
[365430149,1749666640991,-500.0,0.00022903,2]
[365430151,1749666641000,-500.0,0.00022903,2]
[365430154,1749666641010,-500.4986817,0.00022903,2]
[365430156,1749666641019,-500.0,0.00022903,2]
[365430158,1749666641028,-500.0,0.00022903,2]
[365430159,1749666641037,-500.0,0.00022903,2]
[365430162,1749666641047,-500.0,0.00022903,2]
[365430164,1749666641056,-500.0,0.00022903,2]
[365430165,1749666641065,-500.0,0.00022903,2]
[365430168,1749666641075,-505.53938396,0.00022903,2]
[365430169,1749666641084,-500.0,0.00022903,2]
[365430171,1749666641094,-305.7,0.00022911,6]
[365430173,1749666641103,-756.86,0.00022917,3]
[365430176,1749666641113,-500.0,0.00022973,2]
[365430178,1749666641122,-292.35211332,0.00022973,2]
[365430180,1749666641131,-500.91748917,0.00022973,2]
[365430182,1749666641140,-500.0,0.00022973,2]
[365430184,1749666641149,-500.0,0.00022973,2]
[365430186,1749666641159,-500.0,0.00022973,2]
[365430188,1749666641168,-500.0,0.00022973,2]
[365430190,1749666641177,-500.0,0.00022973,2]
[365430192,1749666641191,-500.0,0.00022973,2]
[365430194,1749666641200,-304.63792749,0.00022973,2]
[365430196,1749666641209,-500.0,0.00022973,2]
[365430198,1749666641218,-503.00566977,0.00022973,2]
[365430200,1749666641227,-600.0,0.00022973,2]
[365430202,1749666641238,-500.0,0.00022973,2]
[365430204,1749666641247,-500.0,0.00022973,2]
[365430205,1749666641256,-500.0,0.00022973,2]
[365430206,1749666641265,-500.0,0.00022973,2]
[365430207,1749666641274,-151.0,0.00022973,7]
[365430208,1749666641283,-151.0,0.00022973,7]
[365430209,1749666641293,-151.0,0.00022973,7]
[365430210,1749666641302,-721.202962,0.00022973,7]
[365430211,1749666641311,-721.202962,0.00022973,7]
[365430212,1749666641320,-151.0,0.00022973,7]
[365430213,1749666641331,-72390.74,0.0002298,7]
[365430214,1749666641341,-151.0,0.0002298,7]
[365430215,1749666641350,-151.0,0.0002298,7]
[365430216,1749666641359,-151.0,0.0002298,7]
[365430217,1749666641368,-151.0,0.0002298,7]
[365430218,1749666641378,-151.0,0.0002298,7]
[365430219,1749666641387,-152.255243,0.0002298,7]
[365430220,1749666641396,-152.255243,0.0002298,7]
[365430221,1749666641407,-270.683971,0.0002298,7]
[365430222,1749666641421,-270.683971,0.0002298,7]
[365430223,1749666641429,-453.575662,0.0002298,7]
[365430224,1749666641438,-453.575662,0.0002298,7]
[365430225,1749666641449,-151.0,0.0002298,7]
[365430226,1749666641458,-151.0,0.0002298,7]
[365430227,1749666641467,-211.343556,0.0002298,7]
[365430229,1749666641477,-211.343556,0.0002298,7]
[365430231,1749666641486,-151.0,0.0002298,7]
[365430233,1749666641496,-151.0,0.0002298,7]
[365430235,1749666641505,-153.536195,0.0002298,7]
[365430237,1749666641515,-159.232136,0.0002298,7]
[365430239,1749666641525,-159.232136,0.0002298,7]
[365430241,1749666641534,-528.930879,0.0002298,7]
[365430243,1749666641547,-528.930879,0.0002298,7]
[365430245,1749666641556,-151.0,0.0002298,7]
[365430247,1749666641566,-527.380506,0.0002298,7]
[365430249,1749666641575,-527.380506,0.0002298,7]
[365430251,1749666641585,-1283.108096,0.0002298,7]
[365430254,1749666641594,-208.943659,0.0002298,7]
[365430256,1749666641603,-208.943659,0.0002298,7]
[365430258,1749666641613,-151.0,0.0002298,7]
[365430260,1749666641621,-151.0,0.0002298,7]
[365430262,1749666641630,-178.241321,0.0002298,7]
[365430263,1749666641639,-178.241321,0.0002298,7]
[365430266,1749666641650,-405.79377,0.0002298,7]
[365430268,1749666641659,-405.79377,0.0002298,7]
[365430269,1749666641668,-163.644031,0.0002298,7]
[365430272,1749666641677,-151.0,0.0002298,7]
[365430274,1749666641687,-153.870603,0.0002298,7]
[365430276,1749666641700,-153.870603,0.0002298,7]
[365430278,1749666641710,-717.879805,0.0002298,2]
[365430280,1749666641720,-717.879805,0.0002298,2]
[365430282,1749666641730,-151.0,0.0002298,7]
[365430284,1749666641739,-151.0,0.0002298,7]
[365430286,1749666641749,-284.868136,0.0002298,7]
[365430288,1749666641758,-284.868136,0.0002298,7]
[365430290,1749666641767,-151.0,0.0002298,7]
[365430292,1749666641777,-151.0,0.0002298,7]
[365430294,1749666641786,-173.061753,0.0002298,7]
[365430296,1749666641796,-151.0,0.0002298,7]
[365430298,1749666641812,-173.061753,0.0002298,7]
[365430300,1749666641822,-721.202962,0.0002298,7]
[365430302,1749666641831,-721.202962,0.0002298,7]
[365430304,1749666641840,-151.0,0.0002298,7]
[365430306,1749666641850,-151.0,0.0002298,7]
[365430308,1749666641859,-151.0,0.0002298,7]
[365430310,1749666641869,-167.913368,0.0002298,7]
[365430312,1749666641878,-167.913368,0.0002298,7]
[365430314,1749666641888,-231.951183,0.0002298,7]
[365430316,1749666641898,-231.951183,0.0002298,7]
[365430318,1749666641908,-154.443728,0.0002298,7]
[365430320,1749666641918,-5001.81429897,0.00022998,2]
[365430322,1749666641927,-151.0,0.00022998,7]
[365430324,1749666641936,-1000.0,0.00023,23]
[365430326,1749666641950,-4000.0,0.00023,3]
[365430328,1749666641960,-250.94138988,0.00023,2]
[365430330,1749666641969,-148824.23992116,0.00023,7]
[365430332,1749666641979,-1328.71905864,0.00023,2]
[365430334,1749666641988,-151.0,0.00023,7]
[365430336,1749666642003,-160.0,0.00023,3]
[365430338,1749666642023,-151.0,0.00023,7]
[365430340,1749666642047,-151.0,0.00023,7]
[365430342,1749666642056,-151.0,0.00023,7]
[365430344,1749666642066,-151.0,0.00023,7]
[365430347,1749666642076,-251.940536,0.00023,7]
[365430348,1749666642086,-151.0,0.00023,7]
[365430351,1749666642096,-274.042696,0.00023,7]
[365430353,1749666642105,-151.0,0.00023,7]
[365430355,1749666642115,-3000.0,0.00023,2]
[365430357,1749666642125,-151.0,0.00023,7]
[365430359,1749666642134,-152.255243,0.00023,7]
[365430361,1749666642143,-152.255243,0.00023,7]
[365430363,1749666642153,-270.683971,0.00023,7]
[365430365,1749666642162,-270.683971,0.00023,7]
[365430367,1749666642171,-453.575662,0.00023,7]
[365430369,1749666642181,-453.575662,0.00023,7]
[365430371,1749666642200,-453.575662,0.00023,7]
[365430373,1749666642211,-453.575662,0.00023,7]
[365430376,1749666642222,-151.0,0.00023,7]
[365430378,1749666642232,-151.0,0.00023,7]
[365430380,1749666642242,-211.343556,0.00023,7]
[365430382,1749666642255,-211.343556,0.00023,7]
[365430384,1749666642265,-151.0,0.00023,7]
[365430386,1749666642275,-211.84498,0.00023,7]
[365430388,1749666642286,-153.536195,0.00023,7]
[365430390,1749666642296,-153.536195,0.00023,7]
[365430392,1749666642306,-159.232136,0.00023,7]
[365430394,1749666642316,-159.232136,0.00023,7]
[365430396,1749666642332,-159.232136,0.00023,7]
[365430398,1749666642342,-159.232136,0.00023,7]
[365430400,1749666642352,-528.930879,0.00023,7]
[365430402,1749666642363,-528.930879,0.00023,7]
[365430405,1749666642373,-528.930879,0.00023,7]
[365430407,1749666642383,-528.930879,0.00023,7]
[365430409,1749666642393,-151.0,0.00023,7]
[365430411,1749666642403,-280.23580309,0.00023,7]
[365430413,1749666642415,-527.380506,0.00023,7]
[365430415,1749666642425,-527.380506,0.00023,7]
[365430417,1749666642435,-527.380506,0.00023,7]
[365430419,1749666642448,-527.380506,0.00023,7]
[365430421,1749666642458,-1283.108096,0.00023,7]
[365430423,1749666642468,-1283.108096,0.00023,7]
[365430426,1749666642478,-208.943659,0.00023,7]
[365430428,1749666642487,-208.943659,0.00023,7]
[365430430,1749666642497,-208.943659,0.00023,7]
[365430432,1749666642506,-208.943659,0.00023,7]
[365430448,1749666642647,-151.0,0.00023,7]
[365430450,1749666642656,-151.0,0.00023,7]
[365430452,1749666642666,-205.732765,0.00023,7]
[365430454,1749666642675,-151.0,0.00023,7]
[365430456,1749666642684,-274.999119,0.00023,7]
[365430459,1749666642696,-178.241321,0.00023,7]
[365430461,1749666642706,-178.241321,0.00023,7]
[365430462,1749666642716,-178.241321,0.00023,7]
[365430464,1749666642725,-178.241321,0.00023,7]
[365430466,1749666642735,-405.79377,0.00023,7]
[365430467,1749666642744,-405.79377,0.00023,7]
[365430468,1749666642754,-405.79377,0.00023,7]
[365430469,1749666642763,-405.79377,0.00023,7]
[365430470,1749666642773,-187212.99,0.00023,7]
[365430471,1749666642782,-153.870603,0.00023,7]
[365430472,1749666642791,-153.870603,0.00023,7]
[365430474,1749666642801,-153.870603,0.00023,7]
[365430475,1749666642811,-153.870603,0.00023,7]
[365430476,1749666642820,-717.879805,0.00023,2]
[365430477,1749666642830,-717.879805,0.00023,2]
[365430479,1749666642839,-717.879805,0.00023,2]
[365430481,1749666642848,-717.879805,0.00023,2]
[365430483,1749666642858,-717.879805,0.00023,2]
[365430485,1749666642867,-717.879807,0.00023,2]
[365430487,1749666642877,-151.0,0.00023,7]
[365430489,1749666642886,-151.0,0.00023,7]
[365430491,1749666642896,-151.0,0.00023,7]
[365430493,1749666642905,-151.0,0.00023,7]
[365430495,1749666642915,-213.544918,0.00023,7]
[365430497,1749666642924,-284.868136,0.00023,7]
[365430499,1749666642933,-284.868136,0.00023,7]
[365430501,1749666642945,-284.868136,0.00023,7]
[365430503,1749666642955,-284.868136,0.00023,7]
[365430505,1749666642964,-160.0,0.00023,3]
[365430508,1749666642974,-151.0,0.00023,7]
[365430510,1749666642983,-151.0,0.00023,7]
[365430513,1749666642993,-151.0,0.00023,7]
[365430515,1749666643003,-11860.25191276,0.00023,3]
[365430517,1749666643013,-835.03886221,0.00023,3]
[365430519,1749666643023,-424.19973472,0.00023,3]
[365430522,1749666643032,-160.0,0.00023,3]
[365430525,1749666643042,-151.0,0.00023,7]
[365430528,1749666643051,-151.0,0.00023,7]
[365430531,1749666643061,-151.0,0.00023,7]
[365430534,1749666643070,-173.061753,0.00023,7]
[365430537,1749666643079,-173.061753,0.00023,7]
[365430540,1749666643089,-173.061753,0.00023,7]
[365430543,1749666643098,-293.128787,0.00023,7]
[365430545,1749666643107,-173.061753,0.00023,7]
[365430547,1749666643117,-173.061753,0.00023,7]
[365430550,1749666643126,-213.16534259,0.00023,3]
[365430552,1749666643135,-173.061753,0.00023,7]
[365430554,1749666643144,-721.202962,0.00023,7]
[365430556,1749666643153,-721.202962,0.00023,7]
[365430558,1749666643162,-721.202962,0.00023,7]
[365430560,1749666643172,-721.202962,0.00023,7]
[365430563,1749666643182,-721.202962,0.00023,7]
[365430565,1749666643192,-721.202972,0.00023,7]
[365430566,1749666643201,-151.0,0.00023,7]
[365430568,1749666643211,-151.0,0.00023,7]
[365430570,1749666643220,-151.0,0.00023,7]
[365430572,1749666643229,-151.0,0.00023,7]
[365430574,1749666643239,-151.0,0.00023,7]
[365430576,1749666643248,-151.0,0.00023,7]
[365430578,1749666643257,-151.0,0.00023,7]
[365430580,1749666643267,-151.0,0.00023,7]
[365430582,1749666643276,-151.0,0.00023,7]
[365430584,1749666643286,-167.913368,0.00023,7]
[365430586,1749666643295,-167.913368,0.00023,7]
[365430588,1749666643304,-167.913368,0.00023,7]
[365430590,1749666643313,-167.913368,0.00023,7]
[365430593,1749666643323,-167.913368,0.00023,7]
[365430594,1749666643336,-231.951183,0.00023,7]
[365430596,1749666643345,-167.913368,0.00023,7]
[365430598,1749666643354,-231.951183,0.00023,7]
[365430600,1749666643363,-231.951183,0.00023,7]
[365430602,1749666643373,-231.951183,0.00023,7]
[365430604,1749666643383,-231.951183,0.00023,7]
[365430606,1749666643392,-231.951183,0.00023,7]
[365430608,1749666643402,-844.64040732,0.00023,3]
[365430610,1749666643412,-1332947.27180494,0.00023,20]
[365430627,1749666643548,-310.701976,0.00023,20]
[365430661,1749666643804,-151.0,0.0002199,7]
[365430664,1749666643813,-151.0,0.00022,7]
[365430667,1749666643822,-151.0,0.000222,7]
[365430669,1749666643831,-78.03,0.00022479,2]
[365430671,1749666643842,-884.97,0.00022479,2]
[365430673,1749666643851,-151.9939,0.00022542,7]
[365430675,1749666643861,-6388.90343693,0.00023,20]
[365430677,1749666643872,-475181.96344379,0.00023,20]
[365430679,1749666643881,-160.0,0.00023,3]
[365430681,1749666643891,-200.0,0.00023,2]
[365430683,1749666643901,-229.71724145,0.00023,3]
[365430685,1749666643910,-365.18,0.00023003,3]
[365430687,1749666643919,-3000.0,0.0002301,2]
[365430689,1749666643928,-151.0,0.0002301,7]
[365430691,1749666643937,-270.683971,0.0002301,7]
[365430693,1749666643948,-270.683971,0.0002301,7]
[365430695,1749666643957,-211.343556,0.0002301,7]
[365430697,1749666643966,-211.343556,0.0002301,7]
[365430699,1749666643975,-460.0,0.00023011,4]
[365430701,1749666643985,-545.34,0.00023011,4]
[365430703,1749666643994,-1507.18,0.00023011,4]
[365430705,1749666644003,-460.0,0.00023011,4]
[365430707,1749666644012,-500.0,0.00023012,4]
[365430709,1749666644021,-152.255243,0.00023013,7]